Cogmind - Beta 13 @@@ ROGUE MODE // 2024.05.05 @ 12:10:41 Player: Mylar Result: Destroyed by G-47 Trooper with Particle Gun Performance ------------- Evolutions (0) 0 Regions Visited (1) 200 Robots Destroyed (15) 75 Value Destroyed (405) 405 Prototype IDs (0) 0 Alien Tech Used (0) 0 Bonus (0) 0 TOTAL SCORE: 680 Bonus ------- None Cogmind --------- Core Integrity 0/250 Matter 210/300 Energy 98/100 System Corruption 0% Temperature Cool (9) Movement Rolling (95) Ox1 Location -10/Materials Parts ------- > --- POWER (1) -------- (None) > --- PROPULSION (2) --- Wheel Wheel > --- UTILITY (2) ------ Large Storage Unit Signal Interpreter > --- WEAPON (2) ------- Assault Rifle Light Assault Rifle > --- INVENTORY (15) --- Wheel Wheel Wheel Improved Heat Sink Medium Storage Unit Medium Battery (150) Medium Matter Pod (100) Visual Processing Unit Sensor Array Assault Rifle Grenade Launcher Peak State ------------ > --- POWER ------------ Light Nuclear Core > --- PROPULSION ------- Wheel Wheel > --- UTILITY ---------- Large Storage Unit Targeting Computer > --- WEAPON ----------- Assault Rifle Assault Rifle > --- INVENTORY -------- Wheel Wheel Hover Unit Hover Unit Hover Unit Hover Unit Improved Heat Sink Medium Storage Unit Medium Battery Medium Matter Pod Sensor Array Signal Interpreter Grenade Launcher [Rating: 10] Favorites ----------- Power Light Nuclear Core Engine Ion Engine Power Core Light Nuclear Core Propulsion Wheel Wheel Wheel Utility Large Storage Unit Device Seismic Detector Storage Large Storage Unit Processor Signal Interpreter Weapon Assault Rifle Energy Gun Medium Laser Ballistic Gun Assault Rifle Launcher Grenade Launcher Build | -11 -10 ------- Run | Yrd Mat Slots Evolved . | . . Power . | . . Propulsion . | . . Utility . | . . Weapon . | . . Parts Attached 22 | 8 14 Power 4 | 2 2 Engine 3 | 2 1 Core 1 | . 1 Reactor . | . . Propulsion 6 | 2 4 Treads . | . . Leg . | . . Wheel 6 | 2 4 Hover . | . . Flight . | . . Utility 5 | 2 3 Device 1 | 1 . Storage 2 | 1 1 Processor 2 | . 2 Hackware . | . . Protection . | . . Artifact . | . . Weapon 7 | 2 5 Energy Gun 1 | 1 . Energy Cannon . | . . Ballistic Gun 5 | 1 4 Ballistic Cannon . | . . Launcher 1 | . 1 Special Weapon . | . . Impact Weapon . | . . Slashing Weapon . | . . Piercing Weapon . | . . Special Melee Weapon . | . . Unidentified Prototypes . | . . Parts Lost 9 | . 9 Power 2 | . 2 Propulsion 4 | . 4 Utility 1 | . 1 Weapon 2 | . 2 Highest Loss Streak 4 | . 4 To Critical Strikes . | . . Average Slot Usage (%) 98 | . 98 Engine 6 | . 6 Core 7 | . 7 Wheel 27 | . 27 Device 4 | . 4 Storage 14 | . 14 Processor 8 | . 8 Energy Gun 5 | . 5 Ballistic Gun 15 | . 15 Launcher 6 | . 6 Naked Turns . | . . Heaviest Build 30 | 14 30 Greatest Support 26 | 26 26 Greatest Overweight (x) 1 | . 1 Average Overweight (x) . | . . Largest Inventory Capacity 15 | 8 15 Average Capacity 14 | 6 14 Most Carried 15 | 8 15 Average Carried 11 | 4 11 Final Capacity 15 | 8 15 Final Carried 11 | 8 11 Class Distribution -------------------- 95% | Mutant 4% | Scavenger-Mutant Dominant Class ---------------- Mutant | -10/Materials Resources | -11 -10 ----------- Run | Yrd Mat Matter Collected 495 | 253 242 Remotely . | . . Salvage Created 496 | 30 466 Parts 35 | 5 30 Haulers Intercepted . | . . Recyclers Shooed . | . . Parts Field Recycled . | . . Retrieved Matter . | . . Parts Self-Destructed . | . . Prevented . | . . Kills | -11 -10 ------- Run | Yrd Mat Combat Hostiles Destroyed 11 | . 11 Guns 11 | . 11 Classes Destroyed 5 | 1 4 Worker 1 | . 1 Tunneler 1 | 1 . Watcher 2 | . 2 Swarmer 2 | . 2 Grunt 9 | . 9 Best Kill Streak 4 | 1 4 Combat Bots Only 4 | . 4 Max Kills in Single Turn 1 | 1 1 Gunslinging . | . . Exploded . | . . Melee . | . . Uniques/NPCs Destroyed . | . . Combat | -11 -10 -------- Run | Yrd Mat Hostile Shots Fired 92 | . 92 Missed 15 | . 15 Damage Taken 947 | . 947 Core 264 | . 264 Absorbed by Shields . | . . Core Remaining (%) 100 | 100 . Volleys Fired 73 | 1 72 Largest 2 | 2 2 Hottest 70 | 70 70 Shots Fired 119 | 2 117 Gun 119 | 2 117 Cannon . | . . Launcher . | . . Special . | . . Kinetic 90 | 1 89 Thermal 29 | 1 28 Explosive . | . . Electromagnetic . | . . Robot Hit Streak 18 | 1 18 Robot Miss Streak 4 | . 4 Penetration Max . | . . Secondary Targets 1 | . 1 Max Gunslinging Chain 1 | . 1 Shots Hit Robots 85 | 1 84 Core Hits 31 | 1 30 Critical Kills . | . . Critical Parts Destroyed . | . . Critical Strikes 3 | . 3 Burn 3 | . 3 Melee Attacks . | . . Impact . | . . Slashing . | . . Piercing . | . . Sneak Attacks . | . . Combat Hostiles . | . . Follow-up Attacks . | . . Damage Inflicted 969 | 10 959 Guns 969 | 10 959 Cannons . | . . Explosions . | . . Melee . | . . Ramming . | . . Kinetic 704 | 10 694 Thermal 265 | . 265 Explosive . | . . Electromagnetic . | . . Impact . | . . Slashing . | . . Piercing . | . . Highest Corruption . | . . Average Corruption . | . . Corruption Purged . | . . Corruption Blocked . | . . Overload Shots . | . . Overflow Damage . | . . Projectiles . | . . Explosions . | . . Melee . | . . Knockbacks . | . . Impact . | . . Kinetic . | . . Secondary . | . . Self-Inflicted Damage . | . . Shots . | . . Rammed . | . . Targets Rammed . | . . Kicked . | . . Crushed . | . . Highest Temperature 271 | 30 271 Average Temperature 91 | 18 92 Received Heat Transfer 510 | . 510 Effects 1 | . 1 Energy Bleed 1 | . 1 Siege Activations . | . . Robots Corrupted . | . . Combat Hostiles . | . . Parts Fried . | . . Impact Corruptions . | . . Robots Melted . | . . Combat Hostiles . | . . Parts Melted 4 | . 4 Heat Transferred 999 | . 999 Parts Sabotaged . | . . Parts Stolen . | . . Parts Stripped . | . . Power Chain Reactions . | . . Alert | -11 -10 ------- Run | Yrd Mat Peak Influence 167 | 5 167 Initial 3 | . 3 Average 62 | 2 69 Maximum Alert Level . | . . Low Security (%) 100 | 100 100 Level 1 . | . . Level 2 . | . . Level 3 . | . . Level 4 . | . . Level 5 . | . . High Security . | . . Max Security . | . . Squads Dispatched 3 | . 3 Investigation 2 | . 2 Extermination . | . . Reinforcement 1 | . 1 Assault . | . . Garrison . | . . Intercept . | . . Searches Triggered . | . . Construction Impeded . | . . Haulers Reinforced . | . . Active Scanning Responses . | . . Cargo Convoy Interrupts . | . . Stealth | -11 -10 --------- Run | Yrd Mat Distress Signals 2 | . 2 Communications Jammed . | . . Distress Signals . | . . Times Spotted 22 | . 22 Peak Tracking Total 6 | . 6 Tactical Retreats 1 | . 1 Traps | -11 -10 ------- Run | Yrd Mat Traps Triggered 1 | . 1 Indirectly . | . . Trap Hack Attempts . | . . Triggered . | . . Disarmed . | . . Reprogrammed . | . . Reused . | . . Traps Extracted . | . . Installed . | . . Triggered . | . . Machines | -11 -10 ---------- Run | Yrd Mat Machines Disabled . | . . Max in Single Turn . | . . Machines Repaired . | . . Machines Dismantled . | . . Machines Sabotaged . | . . Overloaded Fab Kills . | . . Hacking | -11 -10 --------- Run | Yrd Mat Machines Accessed 3 | . 3 Terminals 2 | . 2 Fabricators . | . . Repair Stations . | . . Recycling Units 1 | . 1 Scanalyzers . | . . Garrison Access . | . . Total Hacks 20 | . 20 Successful 9 | . 9 Failed 11 | . 11 Catastrophic 1 | . 1 Database Lockouts . | . . Manual 18 | . 18 Terminals 12 | . 12 Fabricators . | . . Repair Stations . | . . Recycling Units 8 | . 8 Scanalyzers . | . . Garrison Access . | . . Terminal Hacks 2 | . 2 Terminal Index 1 | . 1 Locate Traps 1 | . 1 Fabricator Hacks . | . . Repair Station Hacks . | . . Recycling Unit Hacks 1 | . 1 Report Inventory 1 | . 1 Scanalyzer . | . . Garrison Access Hacks . | . . Unauthorized Hacks 6 | . 6 Terminals 3 | . 3 Botnet 2 | . 2 Operators 1 | . 1 Fabricators . | . . Repair Stations . | . . Recycling Units 3 | . 3 Reject 1 | . 1 Recyclers 1 | . 1 Mask 1 | . 1 Scanalyzers . | . . Garrison Access . | . . Data Cores Recovered . | . . Used . | . . Hacking Detections 3 | . 3 Full Trace Events 1 | . 1 Feedback Events . | . . Feedback Blocked . | . . Robot Schematics Acquired . | . . Robots Built . | . . Authchips . | . . Time . | . . Total Robot Build Rating . | . . Part Schematics Acquired . | . . Parts Built . | . . Authchips . | . . Time . | . . Total Part Build Rating . | . . Parts Repaired . | . . Time . | . . Parts Recycled . | . . Recycled Matter . | . . Retrieved Matter . | . . Retrieved Components . | . . Parts Scanalyzed . | . . Part Schematics Acquired . | . . Parts Damaged . | . . Bothacking | -11 -10 ------------ Run | Yrd Mat Used RIF Installer . | . . Robots Hacked . | . . Non-combat . | . . Combat . | . . Robot Hacks Applied . | . . Relay Couplers Released . | . . Fabnet Peak Effective % . | . . Robots Rewired . | . . Allies Hacked . | . . Hacks Repelled . | . . Allies | -11 -10 -------- Run | Yrd Mat Total Allies . | . . Largest Group . | . . Highest-Rated Group . | . . Highest-Rated Ally . | . . Total Orders . | . . Ally Attacks . | . . Total Damage . | . . Kills . | . . Allies Corrupted . | . . Allies Melted . | . . Intel | -11 -10 ------- Run | Yrd Mat Robot Analysis Total . | . . Derelict Logs Recovered . | . . Drone Launches . | . . Drone Recoveries . | . . Exploration | -11 -10 ------------- Run | Yrd Mat Turns Passed 748 | 78 670 Spaces Moved 481 | 62 419 Core 1 | 1 . Treads . | . . Legs . | . . Wheels 480 | 61 419 Hover . | . . Flight . | . . Fastest Speed 50 | 50 90 Average Speed 96 | 89 97 Slowest Speed 105 | 100 105 Overloaded Moves . | . . Propulsion Burnouts . | . . Robots Hopped . | . . Cave-ins Triggered . | . . Exploration Rate (%) 30 | 3 58 Regions Visited 1 Branch Regions . Pre-discovered Areas . | . . Known Exits Taken . | . . Unknown Exits Taken 1 | 1 . Scrap Searched . | . . Spaces Dug . | . . Terrain Destroyed . | . . Melee . | . . Projectile . | . . AOE . | . . Terrain Rammed . | . . Walls Destroyed . | . . Machines Disabled . | . . Actions | -11 -10 --------- Run | Yrd Mat Total 654 | 78 576 Wait 35 | . 35 Move 480 | 61 419 Hop . | . . Pick Up 31 | 8 23 Fast Attach 7 | 7 . Attach 8 | . 8 Detach . | . . Swap 7 | 1 6 Drop 13 | . 13 Fire 73 | 1 72 Melee . | . . Ram . | . . Kick . | . . Crush . | . . Escape Stasis . | . . Rewire . | . . Trap . | . . Miscellaneous . | . . Route ------- -11/Scrapyard -10/Materials (discovered 2 exits: *Mat / *Sub) History --------- Turn | Location | Event 19 | -11/Scrapyard | Discovered new exit (range 15) 79 | -11/Scrapyard | Entered Materials 305 | -10/Materials | Build established: Mutant 310 | -10/Materials | Core integrity fell below 50% 336 | -10/Materials | Core integrity fell below 20% 386 | -10/Materials | Lost 4 parts (2n2w) 457 | -10/Materials | Discovered new exit (range 10) 477 | -10/Materials | Identified exit to Subcaves 507 | -10/Materials | Discovered new exit (range 6) 511 | -10/Materials | Identified exit to Materials 679 | -10/Materials | Derelicts attacked the area 749 | -10/Materials | Destroyed by G-47 Trooper with Particle Gun Last Messages --------------- Testing... Ejection routine running. >>Trojan(Recyclers) Trojan loaded successfully. Testing... Recycler tracking enabled and active. 00693_ Connecting with Recycling Unit... 00693_ ALERT: Suspicious activity at Recycling Unit M001. Dispatching Investigation squad. 00714_ G-34 Mercenary destroyed. 00718_ K-01 Serf collects debris. 00725_ G-47 Trooper destroyed. 00727_ K-01 Serf collects debris. 00730_ Wheel destroyed. 00731_ G-34 Mercenary destroyed. 00731_ K-01 Serf collects debris. 00737_ Lgt. Nuclear Core destroyed. 00738_ K-01 Serf collects debris. 00740_ G-34 Mercenary destroyed. 00741_ K-01 Serf collects debris. Map ----- +----------------------------------------------------+ | ????????????????????????# ???????????? | | ????????????????????????# ???????????? | | ????????????????????????# #??????????? | | ????????????????????????+ +??????????? | | ????????????????????????# #??????????? | | ????????????????????????# #??????????? | | ????????????????????????# #??????????? | | ????????????????????????# #??????????? | | ????????????????????????# #??????????? | | ?????????????????????#+## #??????????? | | ??????????############ ############ | | ??????????# T = ! | | ??????????# ##### | | ??????????+ #???? | | ??????????# ######+#########???# | | ??????????# # #?##### | | ??????????# # """"" #?# # | | ??????????# # """"" #?# # | | ??????????# """ # """"" #?# # | | ??????????# """ !!# #?# # | | ??????????# """ !!###+########+#?# + | | ??????????# #??????# #?# # | | ??????????# o ####???# #?# %=# | | ??????????# !k #??## ###+### | | ??????????# ##g######### #??# | | ??????????# #@%%[ ##=#??# | | ??????????# # [! """ ## #??# | | ??????????# # "Y" ## #??# #### | | ??????????+ # r ## #??# | | ??????????# ############ #??# | | ??????????# #??????????# #??# | | ?????????? ??????????# #??# | | ?????????? ??????????# #??## ### | | ????????? ??????????# #???# #?## | | ?????????######??????????# ##### #??# | | ?????????????????????????# #??# | | ?????????????????????????# #####+#### | | ?????????????????????????# # ## | | ?????????????????????????# + """ ## | | ?????????????????????????# # "R ## | | ?????????????????????????# # """ ## | | ?????????????????????????# # ## | | ?????????????????????????# ##+####### | | ?????????????????????????# #?????#### | | ?????????????????????????# #????????? | | ?????????????????????????######????????? | | ???????????????????????????????????????? | | ???????????????????????????????????????? | | ???????????????????????????????????????? | | | +----------------------------------------------------+ Best States ------------- Heat Dissipation 25 Energy Generation 14 Energy Capacity 250 Matter Stores 300 Matter Capacity 300 Sight Range 16 Terrain Scan Density 10 Evasion (%) 42 Targeting Accuracy 5 Item Schematics ----------------- None Robot Schematics ------------------ None Fabricated ------------ Nothing Alien Tech Used ----------------- None Achievements -------------- None Challenges ------------ None Game ------ Seed BiometalPlasmaMapper Manual? 0 Play Time 00:25:36 Cumulative 109.1 hours Start 2024.05.03 @ 23:49:36 End 2024.05.05 @ 12:10:41 Sessions 2 Manual Loads 0 Difficulty Rogue Special Mode None Game No. 24 Rogue 24 Adventurer 0 Explorer 0 Win Type - Total 0 Types 0/0/0/0/0/0/0/0/0 Lore% 18 Gallery% 22 Achievement% 18 Wizard Run 0 Options --------- Layout 1 ASCII 0 Keyboard 0 Movement Mouse Keybinds 0 Fullscreen 1 Font 24/Smallcaps Map View 50x35 Zoom Use 0% Tactical HUD 1 Map Filters NONE Filters NONE Steam 1 RUN: 07913369-5f3f-407b-8ed1-6d58888589ea